bitfinex-derivatives/quotes_BTCF0:USTF0_20250719
["timestamp","ask_amount","ask_price","bid_price","bid_amount"]
[1752929359296,0.3320164,118310.0,118300.0,0.2011138]
[1752929359596,0.3663807,118310.0,118300.0,1.42489082]
[1752929359798,0.3241373,118310.0,118300.0,1.42489082]
[1752929360394,0.3241373,118310.0,118300.0,1.25591702]
[1752929360590,0.3321373,118310.0,118300.0,1.42489082]
[1752929361001,0.3321373,118310.0,118300.0,1.45720082]
[1752929361200,0.2898952,118310.0,118300.0,1.45720082]
[1752929361400,0.3453752,118310.0,118300.0,1.45720082]
[1752929362300,0.5676042,118310.0,118300.0,1.45720082]
[1752929363300,0.5676042,118310.0,118300.0,1.2024238]
[1752929363501,0.5676042,118310.0,118300.0,1.45720082]
[1752929368503,0.5676042,118310.0,118300.0,1.2024238]
[1752929368703,0.5676042,118310.0,118300.0,1.28045702]
[1752929368904,0.5676042,118310.0,118300.0,1.25591702]
[1752929369505,0.5676042,118310.0,118300.0,1.42489082]
[1752929370306,0.5636042,118310.0,118300.0,1.42489082]
[1752929370506,0.5656042,118310.0,118300.0,1.42489082]
[1752929370709,0.5616042,118310.0,118300.0,1.42489082]
[1752929370916,0.5636042,118310.0,118300.0,1.42489082]
[1752929371416,0.5636042,118310.0,118300.0,1.25591702]
[1752929372118,0.5636042,118310.0,118300.0,1.00114]
[1752929372314,0.5636042,118310.0,118300.0,1.25591702]
[1752929374418,0.5636042,118310.0,118300.0,1.02568]
[1752929374620,0.5636042,118310.0,118300.0,1.28045702]
[1752929374917,0.5636042,118310.0,118300.0,1.44943082]
[1752929375320,0.5636042,118310.0,118300.0,1.45720082]
[1752929381020,0.5636042,118310.0,118300.0,1.28822702]
[1752929381319,0.5636042,118310.0,118300.0,1.03345]
[1752929381519,0.5636042,118310.0,118300.0,1.28822702]
[1752929384121,0.5636042,118310.0,118300.0,0.92742702]
[1752929384317,0.5636042,118310.0,118300.0,1.28822702]
[1752929384513,0.5636042,118310.0,118300.0,0.67447702]
[1752929384716,0.5636042,118310.0,118300.0,0.58252]
[1752929384717,0.69099271,118310.0,118300.0,0.58252]
[1752929385317,0.69099271,118310.0,118300.0,0.70990851]
[1752929386720,0.5636042,118310.0,118300.0,0.70990851]
[1752929386920,0.69099271,118310.0,118300.0,0.70990851]
[1752929388625,0.69099271,118310.0,118300.0,0.58252]
[1752929388822,0.69099271,118310.0,118300.0,0.70990851]
[1752929390529,0.69099271,118310.0,118300.0,0.58252]
[1752929390827,0.69099271,118310.0,118300.0,0.70990851]
[1752929392929,0.69099271,118310.0,118300.0,0.72548851]
[1752929393427,0.5463077,118310.0,118300.0,0.72548851]
[1752929393628,0.67369621,118310.0,118300.0,0.75018851]
[1752929393924,0.5463077,118310.0,118300.0,0.75018851]
[1752929394130,0.67369621,118310.0,118300.0,0.75018851]
[1752929394723,0.67369621,118310.0,118300.0,0.76590851]
[1752929395430,0.5463077,118310.0,118300.0,0.76959851]
[1752929395629,0.67369621,118310.0,118300.0,1.45693082]
[1752929395830,0.67369621,118310.0,118300.0,1.28795702]
[1752929396334,0.5463077,118310.0,118300.0,1.28795702]
[1752929396520,0.67369621,118310.0,118300.0,1.45693082]
[1752929396722,0.5463077,118310.0,118300.0,1.45693082]
[1752929398535,0.5218377,118310.0,118300.0,1.45693082]
[1752929398931,0.4986877,118310.0,118300.0,1.45693082]
[1752929400037,0.4976877,118310.0,118300.0,1.45693082]
[1752929400436,0.4763877,118310.0,118300.0,1.58431933]
[1752929400937,0.4783877,118310.0,118300.0,1.45693082]
[1752929401331,0.4859677,118310.0,118300.0,1.45693082]
[1752929401632,0.4849677,118310.0,118300.0,1.45693082]
[1752929402438,0.48497951,118310.0,118300.0,1.45693082]
[1752929402936,0.48397951,118310.0,118300.0,1.45693082]
[1752929403126,0.4582834,118310.0,118300.0,1.45693082]
[1752929403325,0.4572834,118310.0,118300.0,1.45693082]
[1752929404031,0.47539788,118310.0,118300.0,1.45693082]
[1752929404434,0.4572834,118310.0,118300.0,1.58431933]
[1752929404937,0.4572834,118310.0,118300.0,1.45693082]
[1752929405138,0.4572834,118310.0,118300.0,1.58431933]
[1752929405439,0.4150418,118310.0,118300.0,1.58431933]
[1752929405636,0.4150418,118310.0,118300.0,1.45693082]
[1752929407038,0.4226218,118310.0,118300.0,1.45693082]
[1752929407238,0.4150418,118310.0,118300.0,1.45693082]
[1752929408031,0.4226218,118310.0,118300.0,1.45693082]
[1752929408641,0.4462518,118310.0,118300.0,1.45693082]
[1752929410938,0.4462518,118310.0,118300.0,1.2021538]
[1752929411143,0.4462518,118310.0,118300.0,1.45693082]
[1752929413947,0.46435909,118310.0,118300.0,1.45693082]
[1752929414242,0.44072909,118310.0,118300.0,1.45693082]
[1752929414443,0.24033629,118310.0,118300.0,1.58431933]
[1752929415547,0.24033629,118310.0,118300.0,1.72461933]
[1752929415849,0.24033629,118310.0,118300.0,1.58431933]
[1752929416351,0.26513629,118310.0,118300.0,1.58431933]
[1752929416737,0.43409579,118310.0,118300.0,1.58431933]
[1752929418344,0.26513629,118310.0,118300.0,1.58431933]
[1752929419044,0.26513629,118310.0,118300.0,1.87951933]
[1752929419440,0.43409579,118310.0,118300.0,1.87951933]
[1752929420146,0.26513629,118310.0,118300.0,1.87951933]
[1752929420349,0.24033629,118310.0,118300.0,1.87951933]
[1752929420851,0.26342629,118310.0,118300.0,1.87951933]
[1752929424049,0.245319,118310.0,118300.0,1.87951933]
[1752929425644,0.245319,118310.0,118300.0,1.4973538]
[1752929425948,0.4217785,118310.0,118300.0,1.87951933]
[1752929426144,0.4813385,118310.0,118300.0,1.16961082]
[1752929426346,0.4813385,118310.0,118300.0,1.75117082]
[1752929429753,0.4813385,118310.0,118300.0,1.4963938]
[1752929429952,0.4813385,118310.0,118300.0,1.75117082]
[1752929430847,0.4813385,118310.0,118300.0,1.45597082]
[1752929431352,0.4813385,118310.0,118300.0,0.93525148]
[1752929431552,0.4813385,118310.0,118300.0,1.51749148]
[1752929435654,0.4813385,118310.0,118300.0,1.45665082]
[1752929437458,0.312379,118310.0,118300.0,1.45665082]
[1752929438959,0.4813384,118310.0,118300.0,1.45665082]
[1752929439859,0.312379,118310.0,118300.0,1.45665082]
[1752929440159,0.4813385,118310.0,118300.0,1.45665082]
[1752929441760,0.312379,118310.0,118300.0,1.45665082]
[1752929442561,0.312379,118310.0,118300.0,1.58403933]
[1752929442757,0.29108025,118310.0,118300.0,1.58403933]
[1752929442962,0.245319,118310.0,118300.0,1.64487999]
[1752929443363,0.222229,118310.0,118300.0,1.58403933]
[1752929443759,0.222229,118310.0,118300.0,1.64487999]
[1752929443966,0.222229,118310.0,118300.0,1.58403933]
[1752929444365,0.222229,118310.0,118300.0,1.64487999]
[1752929445167,0.222229,118310.0,118300.0,1.26271446]
[1752929445369,0.222229,118310.0,118300.0,1.64487999]
[1752929445764,0.222229,118310.0,118300.0,1.78517999]
[1752929445970,0.245319,118310.0,118300.0,1.64487999]
[1752929448471,0.245319,118310.0,118300.0,1.26271446]
[1752929448672,0.245319,118310.0,118300.0,1.64487999]
[1752929449673,0.4142785,118310.0,118300.0,1.64487999]
[1752929450570,0.3911885,118310.0,118300.0,1.64487999]
[1752929450873,0.222229,118310.0,118300.0,1.64487999]
[1752929451373,0.245449,118310.0,118300.0,1.64487999]
[1752929454075,0.245449,118310.0,118300.0,1.58403933]
[1752929454076,0.26359223,118310.0,118300.0,1.58403933]
[1752929454475,0.245449,118310.0,118300.0,1.58403933]
[1752929454974,0.26359207,118310.0,118300.0,1.58403933]
[1752929455171,0.26359184,118310.0,118300.0,1.58403933]
[1752929455374,0.26359184,118310.0,118300.0,1.64487999]
[1752929455375,0.222229,118310.0,118300.0,1.64487999]
[1752929455574,0.24037186,118310.0,118300.0,1.58403933]
[1752929457475,0.26359186,118310.0,118300.0,1.58403933]
[1752929457975,0.245449,118310.0,118300.0,1.58403933]
[1752929458176,0.26359133,118310.0,118300.0,1.58403933]
[1752929459576,0.245449,118310.0,118300.0,1.58403933]
[1752929459979,0.245449,118310.0,118300.0,1.22323933]
[1752929460180,0.245449,118310.0,118300.0,2.00567999]
[1752929460483,0.245449,118310.0,118300.0,2.30087999]
[1752929461784,0.245449,118310.0,118300.0,1.57927999]
[1752929461979,0.245449,118310.0,118300.0,2.30087999]
[1752929467384,0.245449,118310.0,118300.0,1.91871446]
[1752929467584,0.252759,118310.0,118300.0,2.17349148]
[1752929468484,0.4444585,118310.0,118300.0,2.17349148]
[1752929468788,0.4600485,118310.0,118300.0,2.17349148]
[1752929469089,0.4754385,118310.0,118300.0,2.17349148]
[1752929469287,0.4789585,118310.0,118300.0,2.17349148]
[1752929469488,0.4789585,118310.0,118300.0,2.17417148]
[1752929469787,0.4789585,118310.0,118300.0,2.17421148]
[1752929470489,0.309999,118310.0,118300.0,2.17421148]
[1752929470788,0.309999,118310.0,118300.0,2.30159999]
[1752929471589,0.4789585,118310.0,118300.0,1.71863999]
[1752929471787,0.4789585,118310.0,118300.0,2.30163999]
[1752929472493,0.4789585,118310.0,118300.0,1.71863999]
[1752929472791,0.4789585,118310.0,118300.0,2.17421148]
[1752929472986,0.4789585,118310.0,118300.0,1.42227768]
[1752929473287,0.62447934,118310.0,118300.0,1.95597231]
[1752929473586,0.49709083,118310.0,118300.0,2.08336082]
[1752929474495,0.49709083,118310.0,118300.0,1.78816082]
[1752929474694,0.49709083,118310.0,118300.0,1.5575038]
[1752929474889,0.49709083,118310.0,118300.0,1.81228082]
[1752929477697,0.49709083,118310.0,118300.0,1.81901082]
[1752929478294,0.62447934,118310.0,118300.0,1.5334238]
[1752929478493,0.62447934,118310.0,118300.0,0.90867851]
[1752929478800,0.2567438,118300.0,118290.0,1.74224917]
[1752929478999,0.2567438,118300.0,118290.0,2.43379661]
[1752929479202,0.2567438,118300.0,118290.0,1.85039661]
[1752929479499,0.2567438,118300.0,118290.0,2.43379661]
[1752929479699,0.38413231,118300.0,118290.0,1.55402]
[1752929479891,0.38413231,118300.0,118290.0,2.11344]
[1752929480093,0.2567438,118300.0,118290.0,2.24082851]
[1752929480293,0.4789728,118300.0,118290.0,2.26390851]
[1752929480994,0.49707182,118300.0,118290.0,2.26390851]
[1752929481300,0.49707182,118300.0,118290.0,2.26590851]
[1752929481501,0.62446033,118300.0,118290.0,2.26594851]
[1752929481801,0.62446033,118300.0,118290.0,2.13848]
[1752929481995,0.62446033,118300.0,118290.0,2.26586851]
[1752929482395,0.62446033,118300.0,118290.0,2.26686851]
[1752929482897,0.62446033,118300.0,118290.0,1.7556]
[1752929483107,0.75184884,118300.0,118290.0,1.7556]
[1752929483601,0.62446033,118300.0,118290.0,1.7556]
[1752929484400,0.62446033,118300.0,118290.0,1.88298851]
[1752929484401,1.12446033,118300.0,118290.0,1.88298851]
[1752929484592,1.12446033,118300.0,118290.0,0.71414851]
[1752929484800,1.29353233,118300.0,118290.0,0.58676]
[1752929484994,1.42092084,118300.0,118290.0,0.58856]
[1752929485198,1.65433233,118300.0,118290.0,0.58856]
[1752929485893,1.65433233,118300.0,118290.0,0.003]
[1752929486099,1.78172084,118300.0,118290.0,0.58872]
[1752929486695,1.78172084,118300.0,118290.0,0.58772]
[1752929487304,1.78172084,118300.0,118290.0,0.58572]
[1752929489205,1.52694382,118300.0,118290.0,0.58572]
[1752929489607,1.78172084,118300.0,118290.0,0.58572]
[1752929493712,0.203978,118290.0,118280.0,0.12738851]
[1752929493913,0.38499651,118290.0,118280.0,0.72866851]
[1752929494512,0.38499651,118290.0,118280.0,0.75174851]
[1752929494912,0.88499651,118290.0,118280.0,0.75374851]
[1752929495313,0.979837,118290.0,118280.0,0.75374851]
[1752929495515,0.979837,118290.0,118280.0,0.76904851]
[1752929495813,1.10722551,118290.0,118280.0,0.76904851]
[1752929496017,1.10722551,118290.0,118280.0,0.77004851]
[1752929496313,1.10722551,118290.0,118280.0,0.77333851]
[1752929497615,0.979837,118290.0,118280.0,0.77333851]
[1752929497917,1.10722551,118290.0,118280.0,0.64595]
[1752929498111,1.10722551,118290.0,118280.0,0.77333851]
[1752929498615,1.10722551,118290.0,118280.0,0.64595]
[1752929498814,1.10722551,118290.0,118280.0,0.77333851]
[1752929499315,1.10722551,118290.0,118280.0,0.80333851]
[1752929500219,0.979837,118290.0,118280.0,0.93072702]
[1752929500414,1.10722551,118290.0,118280.0,0.93072702]
[1752929500617,1.10722551,118290.0,118280.0,0.95567702]
[1752929501322,1.10722551,118290.0,118280.0,1.32362702]
[1752929501523,0.979837,118290.0,118280.0,1.34222757]
[1752929501822,1.10722551,118290.0,118280.0,1.34222757]
[1752929502322,0.979837,118290.0,118280.0,1.34222757]
[1752929502522,0.979837,118290.0,118280.0,1.51122977]
[1752929503024,0.479837,118290.0,118280.0,1.34222757]
[1752929503413,0.479837,118290.0,118280.0,1.51122987]
[1752929504125,0.49789655,118290.0,118280.0,1.51122987]
[1752929504727,0.49789655,118290.0,118280.0,1.34222757]
[1752929506030,0.49789655,118290.0,118280.0,1.51122977]
[1752929506726,0.47515655,118290.0,118280.0,1.51122977]
[1752929507026,0.441977,118290.0,118280.0,1.51122977]
[1752929507326,0.40928459,118290.0,118280.0,1.48122977]
[1752929507629,0.40928459,118290.0,118280.0,1.72122977]
[1752929508533,0.40928459,118290.0,118280.0,1.46645275]
[1752929508731,0.40928459,118290.0,118280.0,1.72122977]
[1752929508931,0.43352459,118290.0,118280.0,1.72122977]
[1752929509431,0.46291459,118290.0,118280.0,1.72122977]
[1752929510927,0.49790459,118290.0,118280.0,1.72122977]
[1752929511231,0.6252931,118290.0,118280.0,1.72122977]
[1752929511428,0.49790459,118290.0,118280.0,1.72122977]
[1752929521437,0.43352459,118290.0,118280.0,1.72122977]
[1752929521934,0.40928459,118290.0,118280.0,1.72122977]
[1752929522436,0.40928459,118290.0,118280.0,1.84861828]
[1752929522638,0.391217,118290.0,118280.0,1.84861828]
[1752929522837,0.391217,118290.0,118280.0,1.90945894]
[1752929523347,0.391217,118290.0,118280.0,1.72122977]
[1752929525333,0.415247,118290.0,118280.0,1.72122977]
[1752929530937,0.415247,118290.0,118280.0,1.46645275]
[1752929531134,0.415247,118290.0,118280.0,1.72122977]
[1752929532446,0.391217,118290.0,118280.0,1.72122977]
[1752929533245,0.415247,118290.0,118280.0,1.72122977]
[1752929533646,0.421707,118290.0,118280.0,1.72122977]
[1752929534045,0.415247,118290.0,118280.0,1.72122977]
[1752929534848,0.391217,118290.0,118280.0,1.72122977]
[1752929536349,0.415247,118290.0,118280.0,1.72122977]
[1752929536549,0.415247,118290.0,118280.0,1.84861828]
[1752929536951,0.415247,118290.0,118280.0,1.72122977]
[1752929537646,0.391217,118290.0,118280.0,1.72122977]
[1752929538043,0.391217,118290.0,118280.0,1.84861828]
[1752929538450,0.391217,118290.0,118280.0,1.72122977]
[1752929538750,0.415247,118290.0,118280.0,1.72122977]
[1752929540258,0.422087,118290.0,118280.0,1.78207043]
[1752929543252,0.422087,118290.0,118280.0,1.72122977]
[1752929544060,0.4401319,118290.0,118280.0,1.72122977]
[1752929545358,0.4332919,118290.0,118280.0,1.72122977]
[1752929545767,0.4332919,118290.0,118280.0,1.51122977]
[1752929547364,0.415247,118290.0,118280.0,1.51122977]
[1752929548363,0.4332958,118290.0,118280.0,1.51122977]
[1752929549964,0.4647458,118290.0,118280.0,1.51122977]
[1752929551359,0.4401358,118290.0,118280.0,1.51122977]
[1752929551867,0.4332958,118290.0,118280.0,1.51122977]
[1752929552067,0.4332958,118290.0,118280.0,1.63861828]
[1752929552260,0.4332958,118290.0,118280.0,1.51122977]
[1752929553964,0.415247,118290.0,118280.0,1.51122977]
[1752929554370,0.415247,118290.0,118280.0,1.63861828]
[1752929555169,0.415247,118290.0,118280.0,1.69945894]
[1752929555769,0.422087,118290.0,118280.0,1.69945894]
[1752929556174,0.415247,118290.0,118280.0,1.63861828]
[1752929557470,0.415247,118290.0,118280.0,1.69945894]
[1752929558969,0.222229,118290.0,118280.0,1.69945894]
[1752929559171,0.222229,118290.0,118280.0,2.03945894]
[1752929559673,0.222229,118290.0,118280.0,1.69945894]
[1752929561276,0.391217,118290.0,118280.0,1.69945894]
[1752929561467,0.413967,118290.0,118280.0,1.69945894]
[1752929561973,0.413967,118290.0,118280.0,1.31729341]
[1752929562568,0.413967,118290.0,118280.0,1.57207043]
[1752929563674,0.420807,118290.0,118280.0,1.57207043]
[1752929564773,0.476997,118290.0,118280.0,1.57207043]
[1752929564969,0.480337,118290.0,118280.0,1.57207043]
[1752929565575,0.480337,118290.0,118280.0,1.71237043]
[1752929577685,0.480337,118290.0,118280.0,1.45759341]
[1752929577872,0.480337,118290.0,118280.0,1.71237043]
[1752929582886,0.480337,118290.0,118280.0,1.83975894]
[1752929583087,0.480337,118290.0,118280.0,1.45759341]
[1752929583287,0.480337,118290.0,118280.0,1.83975894]
[1752929584489,0.455727,118290.0,118280.0,1.83975894]
[1752929585489,0.251819,118290.0,118280.0,1.77891828]
[1752929585688,0.244979,118290.0,118280.0,1.77891828]
[1752929586188,0.413967,118290.0,118280.0,1.77891828]
[1752929587490,0.420387,118290.0,118280.0,1.77891828]
[1752929589396,0.420387,118290.0,118280.0,2.13971828]
[1752929590298,0.251399,118290.0,118280.0,2.13971828]
[1752929590596,0.420387,118290.0,118280.0,2.13971828]
[1752929592303,0.420387,118290.0,118280.0,2.20057974]
[1752929595398,0.420387,118290.0,118280.0,1.61453974]
[1752929595601,0.420387,118290.0,118280.0,2.19697974]
[1752929597703,0.251399,118290.0,118280.0,2.19697974]
[1752929597897,0.251399,118290.0,118280.0,2.52697974]
[1752929598099,0.29471952,118310.0,118300.0,0.1689737]
[1752929598303,0.29471952,118310.0,118300.0,1.85697923]
[1752929598304,0.33540179,118310.0,118300.0,1.85697923]
[1752929598498,0.34182179,118310.0,118300.0,1.4748137]
[1752929598699,0.34182179,118310.0,118300.0,1.72959072]
[1752929598893,0.36133179,118310.0,118300.0,1.73052072]
[1752929599099,0.37809179,118310.0,118300.0,1.73052072]
[1752929599304,0.37809179,118310.0,118300.0,1.73052082]
[1752929600509,0.36116837,118310.0,118300.0,1.73052082]
[1752929600802,0.36116837,118310.0,118300.0,1.72959082]
[1752929601505,0.58439737,118310.0,118300.0,1.72959082]
[1752929601708,0.58439737,118310.0,118300.0,1.30584]
[1752929601900,0.58439737,118310.0,118300.0,1.56061702]
[1752929602100,0.58339737,118310.0,118300.0,1.56328702]
[1752929602399,0.58439737,118310.0,118300.0,0.97784702]
[1752929602608,0.58439737,118310.0,118300.0,1.56328702]
[1752929604004,0.58439737,118310.0,118300.0,0.97784702]
[1752929604603,0.58439737,118310.0,118300.0,1.56312702]
[1752929604804,0.58439737,118310.0,118300.0,1.56316702]
[1752929605304,0.58439737,118310.0,118300.0,0.97784702]
[1752929605504,0.58439737,118310.0,118300.0,1.56308702]
[1752929607605,0.58439737,118310.0,118300.0,1.73206082]
[1752929607907,0.58439737,118310.0,118300.0,1.56308702]
[1752929608409,0.58439737,118310.0,118300.0,1.56276702]
[1752929609503,0.58439737,118310.0,118300.0,1.73174082]
[1752929610508,0.58439737,118310.0,118300.0,1.4769638]
[1752929610707,0.58439737,118310.0,118300.0,1.73174082]
[1752929616008,0.58439737,118310.0,118300.0,1.56276702]
[1752929617411,0.58439737,118310.0,118300.0,1.73174082]
[1752929617716,0.58439737,118310.0,118300.0,1.4769638]
[1752929617912,0.58439737,118310.0,118300.0,1.56276702]
[1752929618415,0.58439737,118310.0,118300.0,1.73174082]
[1752929619818,0.58439737,118310.0,118300.0,1.30799]
[1752929620116,0.58439737,118310.0,118300.0,1.56276702]
[1752929620814,0.58439737,118310.0,118300.0,1.73174082]
[1752929621116,0.58439737,118310.0,118300.0,1.37094082]
[1752929622017,0.58439737,118310.0,118300.0,1.20196702]
[1752929625319,0.71178588,118310.0,118300.0,0.3608]
[1752929625628,0.71178588,118310.0,118300.0,0.94512]
[1752929625812,0.69372361,118310.0,118300.0,1.07250851]
[1752929626017,0.71122249,118310.0,118300.0,1.07250851]
[1752929626316,0.58383398,118310.0,118300.0,1.07250851]
[1752929626513,0.71122249,118310.0,118300.0,1.07250851]
[1752929627723,0.50632148,118310.0,118300.0,1.36979082]
[1752929627917,0.46406738,118310.0,118300.0,1.36979082]
[1752929629025,0.46306738,118310.0,118300.0,1.36979082]
[1752929629222,0.46406738,118310.0,118300.0,1.36979082]
[1752929629922,0.46306738,118310.0,118300.0,1.36979082]
[1752929631426,0.46206738,118310.0,118300.0,1.36979082]
[1752929632726,0.46206738,118310.0,118300.0,1.49717933]
[1752929632922,0.29310788,118310.0,118300.0,1.36979082]
[1752929633425,0.275609,118310.0,118300.0,1.36979082]
[1752929633841,0.4445685,118310.0,118300.0,1.36979082]
[1752929634927,0.275609,118310.0,118300.0,1.36979082]
[1752929635332,0.4445685,118310.0,118300.0,1.36979082]
[1752929636231,0.275609,118310.0,118300.0,1.36979082]
[1752929636723,0.275609,118310.0,118300.0,1.49717933]
[1752929636923,0.29310346,118310.0,118300.0,1.36979082]
[1752929637128,0.28668346,118310.0,118300.0,1.49717933]
[1752929637924,0.29382346,118310.0,118300.0,1.49717933]
[1752929638632,0.276329,118310.0,118300.0,1.49717933]
[1752929640530,0.276329,118310.0,118300.0,1.55803944]
[1752929641827,0.276329,118310.0,118300.0,1.43065093]
[1752929642028,0.269189,118310.0,118300.0,1.55803944]
[1752929642332,0.269189,118310.0,118300.0,1.89803944]
[1752929642333,0.222229,118310.0,118300.0,1.89803944]
[1752929644130,0.222229,118310.0,118300.0,1.83717933]
[1752929644335,0.222229,118310.0,118300.0,1.89803944]
[1752929644835,0.222229,118310.0,118300.0,1.83717933]
[1752929645324,0.222229,118310.0,118300.0,1.97747933]
[1752929645933,0.222229,118310.0,118300.0,1.98247933]
[1752929646529,0.270869,118310.0,118300.0,1.98247933]
[1752929646836,0.270869,118310.0,118300.0,2.27767933]
[1752929648738,0.222229,118310.0,118300.0,2.27767933]
[1752929652141,0.270869,118310.0,118300.0,2.27767933]
[1752929654145,0.270869,118310.0,118300.0,2.33853944]
[1752929655145,0.222229,118310.0,118300.0,2.27767933]
[1752929655540,0.222229,118310.0,118300.0,2.33853944]
[1752929656442,0.17243342,118310.0,118300.0,2.33853944]
[1752929657544,0.17243342,118310.0,118300.0,2.27767933]
[1752929660046,0.16268287,118310.0,118300.0,2.35378875]
[1752929665142,0.20834287,118310.0,118300.0,2.35378875]
[1752929666852,0.18854287,118310.0,118300.0,2.71458875]
[1752929669348,0.19510287,118310.0,118300.0,2.71458875]
[1752929670966,0.19510287,118310.0,118300.0,1.99298875]
[1752929671166,0.19510287,118310.0,118300.0,2.71458875]
[1752929672969,0.19510287,118310.0,118300.0,1.99298875]
[1752929673162,0.19510287,118310.0,118300.0,2.71458875]
[1752929678269,0.19510287,118310.0,118300.0,3.88330875]
[1752929684284,0.19510287,118310.0,118300.0,3.80719933]
[1752929684476,0.19510287,118310.0,118300.0,3.88330875]
[1752929688179,0.19510287,118310.0,118300.0,3.80719933]
[1752929688781,0.19510287,118310.0,118300.0,3.88330875]
[1752929688985,0.17574287,118310.0,118300.0,3.88330875]
[1752929690485,0.21707287,118310.0,118300.0,3.88062875]
[1752929690686,0.21707287,118310.0,118300.0,3.80451933]
[1752929690881,0.21707287,118310.0,118300.0,3.22195933]
[1752929691081,0.21707287,118310.0,118300.0,3.67713082]
[1752929691476,0.38603237,118310.0,118300.0,3.67713082]
[1752929691681,0.21707287,118310.0,118300.0,3.67713082]
[1752929691877,0.21707287,118310.0,118300.0,3.80451933]
[1752929692182,0.21707287,118310.0,118300.0,3.22195933]
[1752929692485,0.21707287,118310.0,118300.0,3.80451933]
[1752929694183,0.21707287,118310.0,118300.0,3.58542875]
[1752929695784,0.17460287,118310.0,118300.0,3.58607875]
[1752929695990,0.14474534,118310.0,118300.0,3.58607875]
[1752929699587,0.12627534,118310.0,118300.0,3.58607875]
[1752929700090,0.10341534,118310.0,118300.0,3.58607875]
[1752929700393,0.05114534,118310.0,118300.0,3.58607875]
[1752929700889,0.09880534,118310.0,118300.0,3.58607875]
[1752929706887,0.09880534,118310.0,118300.0,3.20391322]
[1752929707098,0.10578534,118310.0,118300.0,3.58607875]
[1752929707393,0.13752534,118310.0,118300.0,3.58607875]
[1752929707597,0.14105534,118310.0,118300.0,3.00351875]
[1752929707787,0.14105534,118310.0,118300.0,3.58599875]
[1752929711892,0.14105534,118310.0,118300.0,3.88119875]
[1752929712490,0.13752534,118310.0,118300.0,3.88119875]
[1752929712692,0.10578534,118310.0,118300.0,3.88119875]
[1752929713995,0.10578534,118310.0,118300.0,3.88115875]
[1752929715096,0.12233534,118310.0,118300.0,3.88115875]
[1752929715694,0.13752534,118310.0,118300.0,3.88115875]
[1752929719299,0.12233534,118310.0,118300.0,3.88115875]
[1752929719600,0.10578534,118310.0,118300.0,3.88115875]
[1752929719802,0.14105534,118310.0,118300.0,3.74081875]
[1752929723900,0.14105534,118310.0,118300.0,3.44561875]
[1752929725806,0.14105534,118310.0,118300.0,3.58591875]
[1752929726206,0.12233534,118310.0,118300.0,3.58591875]
[1752929733909,0.03669209,118310.0,118300.0,3.59688875]
[1752929734109,0.03669209,118310.0,118300.0,3.52077933]
[1752929735816,0.25892109,118310.0,118300.0,3.38047933]
[1752929736118,0.222229,118310.0,118300.0,3.40336933]
[1752929737302,0.17992108,118310.0,118300.0,3.47947875]
[1752929740112,0.07246108,118310.0,118300.0,3.47947875]
[1752929740313,0.07246108,118310.0,118300.0,3.09731322]
[1752929740513,0.07246108,118310.0,118300.0,3.47947875]
[1752929741616,0.07246108,118310.0,118300.0,3.77467875]
[1752929743116,0.07246108,118310.0,118300.0,2.02355875]
[1752929743311,0.07246108,118310.0,118300.0,3.77627875]
[1752929745515,0.07246108,118310.0,118300.0,3.79535972]
[1752929746119,0.07943108,118310.0,118300.0,3.79535972]
[1752929746417,0.12834108,118310.0,118300.0,3.79535972]
[1752929747315,0.12834108,118310.0,118300.0,3.41295419]
[1752929747618,0.12834108,118310.0,118300.0,3.79511972]
[1752929769138,0.12834108,118310.0,118300.0,2.82915419]
[1752929769335,0.12834108,118310.0,118300.0,3.79379972]
[1752929774138,0.12834108,118310.0,118300.0,3.7176903]
[1752929776738,0.12834108,118310.0,118300.0,2.9960903]
[1752929776938,0.12834108,118310.0,118300.0,3.7176903]
[1752929778138,0.16583108,118310.0,118300.0,3.7176903]
[1752929778342,0.16583108,118310.0,118300.0,3.65046195]
[1752929778644,0.16583108,118310.0,118300.0,3.37660195]
[1752929778843,0.16583108,118310.0,118300.0,2.30956097]
[1752929779034,0.16583108,118310.0,118300.0,3.10762815]
[1752929779035,0.33479268,118310.0,118300.0,3.10762815]
[1752929779343,0.33479268,118310.0,118300.0,3.27660405]
[1752929779545,0.16583108,118310.0,118300.0,3.27660405]
[1752929779743,0.33479268,118310.0,118300.0,3.27660405]
[1752929779940,0.33479268,118310.0,118300.0,2.96097687]
[1752929780146,0.35224653,118310.0,118300.0,3.21575389]
[1752929780539,0.33479268,118310.0,118300.0,3.21575389]
[1752929782141,0.33479268,118310.0,118300.0,2.63331389]
[1752929782339,0.33479268,118310.0,118300.0,3.21579389]
[1752929782948,0.33479268,118310.0,118300.0,2.92059389]
[1752929785041,0.33479268,118310.0,118300.0,2.66581687]
[1752929785351,0.33479268,118310.0,118300.0,2.92059389]
[1752929786849,0.33479268,118310.0,118300.0,2.19899389]
[1752929787047,0.33479268,118310.0,118300.0,2.55979389]
[1752929787245,0.33479268,118310.0,118300.0,1.97731389]
[1752929787446,0.33479268,118310.0,118300.0,2.55979389]
[1752929788854,0.33479268,118310.0,118300.0,2.60787389]
[1752929789055,0.33479268,118310.0,118300.0,2.35309687]
[1752929789254,0.33479268,118310.0,118300.0,2.60787389]
[1752929796659,0.33479268,118310.0,118300.0,2.60944389]
[1752929797061,0.33479268,118310.0,118300.0,2.97024389]
[1752929803064,0.16583108,118310.0,118300.0,2.97024389]
[1752929804068,0.33479298,118310.0,118300.0,2.97024389]
[1752929805468,0.33479298,118310.0,118300.0,3.03109405]
[1752929813873,0.33479298,118310.0,118300.0,1.86241405]
[1752929818876,0.07246108,118310.0,118300.0,1.86241405]
[1752929819076,0.24142278,118310.0,118300.0,1.98980256]
[1752929819480,0.24142278,118310.0,118300.0,1.60763703]
[1752929819780,0.29448278,118310.0,118300.0,1.86241405]
[1752929820981,0.29448278,118310.0,118300.0,1.60763703]
[1752929821278,0.29448278,118310.0,118300.0,1.86241405]
[1752929824281,0.34824301,118310.0,118300.0,1.80156389]
[1752929826084,0.34824301,118310.0,118300.0,1.21908389]
[1752929826277,0.34824301,118310.0,118300.0,1.80152389]
[1752929827383,0.34824301,118310.0,118300.0,1.21908389]
[1752929827584,0.34824301,118310.0,118300.0,1.80144389]
[1752929828384,0.33076278,118310.0,118300.0,1.80144389]
[1752929829277,0.34824425,118310.0,118300.0,1.80144389]
[1752929830978,0.34824425,118310.0,118300.0,0.96430687]
[1752929831188,0.34824425,118310.0,118300.0,1.83596389]
[1752929834286,0.33076278,118310.0,118300.0,1.89681405]
[1752929834690,0.33076278,118310.0,118300.0,1.31449405]
[1752929834882,0.33076278,118310.0,118300.0,1.89717405]
[1752929838991,0.33076278,118310.0,118300.0,1.05971703]
[1752929839187,0.33076278,118310.0,118300.0,1.89693405]
[1752929841895,0.33076278,118310.0,118300.0,1.89536405]
[1752929844297,0.33076278,118310.0,118300.0,1.83451389]
[1752929844799,0.33076278,118310.0,118300.0,1.89536405]
[1752929846500,0.33076278,118310.0,118300.0,1.53456405]